bitfinex-derivatives/quotes_SOLF0:USTF0_20260220
["timestamp","ask_amount","ask_price","bid_price","bid_amount"]
[1771598423408,10.8317,83.114,83.065,10.8381]
[1771598423912,3.83736481,83.148,83.061,4.01331917]
[1771598424210,10.8278,83.145,83.09,10.8348]
[1771598424409,3.83736481,83.148,83.06,9.98320234]
[1771598424606,3.83736481,83.148,83.061,4.01331917]
[1771598424812,10.8308,83.122,83.061,4.01331917]
[1771598425104,3.83736481,83.13,83.04,5.96988317]
[1771598425309,3.83736481,83.13,83.041,4.01331917]
[1771598426709,3.83736481,83.13,83.04,5.96988317]
[1771598426710,3.83736481,83.13,83.062,4.01331917]
[1771598427512,3.83736481,83.149,83.062,4.01331917]
[1771598427911,10.8286,83.139,83.089,10.8349]
[1771598428405,10.8296,83.13,83.077,10.8365]
[1771598428609,3.83736481,83.129,83.062,4.01331917]
[1771598428803,3.83736481,83.129,83.04,9.98320234]
[1771598429010,3.83736481,83.129,83.041,4.01331917]
[1771598429507,10.8317,83.114,83.067,10.8378]
[1771598429710,3.83736481,83.129,83.067,10.8378]
[1771598430511,10.8319,83.113,83.067,10.8378]
[1771598431807,10.8307,83.122,83.067,10.8378]
[1771598432311,10.8316,83.115,83.067,10.8378]
[1771598433407,3.83736481,83.121,83.067,10.8378]
[1771598433616,3.83736481,83.121,83.075,10.8367]
[1771598434404,3.83736481,83.121,83.067,10.8378]
[1771598434603,3.83736481,83.158,83.061,4.01331917]
[1771598434905,3.83736481,83.175,83.081,4.01331917]
[1771598435105,3.83736481,83.175,83.101,4.01331917]
[1771598435305,3.83736481,83.218,83.121,4.01331917]
[1771598435506,3.83736481,83.218,83.141,4.01331917]
[1771598435713,3.83736481,83.218,83.145,4.01331917]
[1771598436708,10.8183,83.217,83.163,10.8252]
[1771598437104,3.83736481,83.218,83.145,4.01331917]
[1771598437309,10.8194,83.209,83.145,4.01331917]
[1771598437510,3.80716032,83.208,83.145,4.01331917]
[1771598438216,3.80716032,83.208,83.131,3.93478594]
[1771598438619,3.80716032,83.206,83.143,10.8278]
[1771598438916,3.80716032,83.206,83.131,3.93478594]
[1771598439415,3.80716032,83.206,83.15,10.8269]
[1771598439617,3.80716032,83.206,83.131,3.93478594]
[1771598439809,10.8209,83.197,83.141,10.8281]
[1771598440009,10.8209,83.197,83.131,3.93478594]
[1771598440010,3.80716032,83.197,83.131,3.93478594]
[1771598440512,10.822,83.189,83.132,10.8292]
[1771598441312,10.8228,83.183,83.131,3.93478594]
[1771598441511,3.80716032,83.188,83.131,3.93478594]
[1771598441908,3.80716032,83.206,83.131,3.93478594]
[1771598442112,10.8216,83.192,83.138,10.8285]
[1771598442312,3.80716032,83.199,83.11,9.88019633]
[1771598442514,14.63176032,83.169,83.113,10.8318]
[1771598442715,3.80716032,83.168,83.091,3.93478594]
[1771598443115,10.8273,83.148,83.096,10.8339]
[1771598444316,10.8273,83.148,83.091,3.93478594]
[1771598445020,10.8263,83.156,83.1,10.8334]
[1771598445220,10.8263,83.156,83.091,3.93478594]
[1771598445221,3.80716032,83.156,83.091,3.93478594]
[1771598446518,10.8273,83.148,83.099,10.8336]
[1771598446820,10.8273,83.148,83.091,3.93478594]
[1771598447015,3.80716032,83.156,83.091,3.93478594]
[1771598447220,10.8255,83.162,83.091,3.93478594]
[1771598447819,3.80716032,83.153,83.096,10.834]
[1771598448415,3.80716032,83.153,83.091,3.93478594]
[1771598448416,10.8286,83.138,83.091,3.93478594]
[1771598448627,3.80716032,83.139,83.071,3.93478594]
[1771598448919,3.80716032,83.139,83.051,3.93478594]
[1771598449515,5.94541039,83.16,83.03,9.88019633]
[1771598449516,3.80716032,83.109,83.03,9.88019633]
[1771598449719,3.80716032,83.109,83.03,3.93478594]
[1771598450320,3.80716032,83.089,83.009,3.93478594]
[1771598450517,3.80716032,83.069,82.99,9.88019633]
[1771598450825,3.80716032,83.064,82.995,10.8472]
[1771598451816,3.80716032,83.064,83.004,10.846]
[1771598452024,3.80716032,83.064,82.99,3.93478594]
[1771598452515,3.80716032,83.059,82.99,3.93478594]
[1771598454923,14.64606032,83.059,82.99,3.93478594]
[1771598455126,3.80716032,83.059,82.99,3.93478594]
[1771598455428,3.80716032,83.059,82.995,10.8472]
[1771598455724,3.80716032,83.059,82.99,3.93478594]
[1771598456025,10.8403,83.048,82.99,3.93478594]
[1771598456823,3.80716032,83.047,82.99,3.93478594]
[1771598457521,3.80716032,83.043,82.971,3.93478594]
[1771598458222,3.80716032,83.041,82.975,10.8497]
[1771598459431,3.80716032,83.026,82.952,3.93478594]
[1771598460430,3.80716032,83.049,82.961,3.93478594]
[1771598461027,14.64886032,83.038,82.98,10.8491]
[1771598461428,14.64886032,83.038,82.961,3.93478594]
[1771598461631,14.64886032,83.038,82.979,10.8493]
[1771598461832,3.80716032,83.069,82.98,3.93478594]
[1771598462124,5.94541039,83.09,82.981,3.93478594]
[1771598462125,3.80716032,83.067,82.981,3.93478594]
[1771598462530,3.80716032,83.056,82.981,3.93478594]
[1771598463126,3.80716032,83.056,83.003,10.8461]
[1771598463325,3.80716032,83.056,82.981,3.93478594]
[1771598464129,3.80716032,83.049,82.981,3.93478594]
[1771598465131,10.8404,83.048,82.988,10.8481]
[1771598465928,10.8419,83.036,82.981,3.93478594]
[1771598466330,3.9618216,83.035,82.963,3.6732223]
[1771598466735,3.9618216,83.054,82.981,3.6732223]
[1771598467535,168.5094,83.107,82.981,3.6732223]
[1771598467536,3.71106094,83.075,82.981,3.6732223]
[1771598467734,3.71106094,83.075,83.001,3.98728737]
[1771598468033,3.71106094,83.075,83.03,10.8426]
[1771598468622,10.8352,83.087,83.037,10.8417]
[1771598469426,3.71106094,83.095,83.037,10.8417]
[1771598470338,10.8343,83.094,83.037,10.8417]
[1771598470735,3.71106094,83.084,83.026,10.8431]
[1771598471137,3.71106094,83.084,83.018,3.98728737]
[1771598471335,14.54796094,83.075,83.02,10.8439]
[1771598471535,3.71106094,83.074,83.02,10.8439]
[1771598472735,3.71106094,83.099,83.021,3.98728737]
[1771598473135,3.71106094,83.099,83.045,10.8406]
[1771598473334,3.71106094,83.129,83.041,3.98728737]
[1771598473742,3.71106094,83.103,83.041,3.98728737]
[1771598474038,3.71106094,83.103,83.021,3.98728737]
[1771598474437,3.71106094,83.096,83.021,3.98728737]
[1771598474631,3.71106094,83.096,83.01,5.94541039]
[1771598474632,3.71106094,83.089,83.01,5.94541039]
[1771598475035,3.71106094,83.089,83.011,3.98728737]
[1771598475240,3.71106094,83.109,83.031,3.98728737]
[1771598475440,10.8336,83.1,83.044,10.8408]
[1771598475644,3.71106094,83.109,83.031,3.98728737]
[1771598476641,3.71106094,83.109,83.018,10.8441]
[1771598476839,3.71106094,83.089,83.014,3.98728737]
[1771598478349,3.71106094,83.087,83.014,3.98728737]
[1771598478549,10.8362,83.08,83.026,3.98728737]
[1771598478757,3.71106094,83.087,83.026,3.98728737]
[1771598479355,3.71106094,83.087,83.008,3.98728737]
[1771598480053,3.71106094,83.068,83.008,3.98728737]
[1771598481548,21.6708,83.086,82.986,3.98728737]
[1771598481549,3.71106094,83.049,82.986,3.98728737]
[1771598481757,3.71106094,83.049,82.913,21.5928529]
[1771598481758,3.71106094,83.049,82.968,3.98728737]
[1771598482753,3.71106094,83.046,82.968,3.98728737]
[1771598483657,10.8435,83.024,82.974,3.98728737]
[1771598483960,3.71106094,83.046,82.974,3.98728737]
[1771598484260,10.8424,83.033,82.984,10.8486]
[1771598484757,10.8399,83.051,82.995,14.83448737]
[1771598485059,3.71106094,83.065,82.971,3.98728737]
[1771598485262,3.71106094,83.049,82.971,3.98728737]
[1771598485460,10.842,83.036,82.981,10.849]
[1771598485759,21.6707,83.087,82.971,3.98728737]
[1771598485760,3.71106094,83.069,82.971,3.98728737]
[1771598486057,10.8407,83.046,82.993,3.98728737]
[1771598487159,10.8407,83.046,82.946,21.7073]
[1771598487160,3.71106094,83.029,82.952,3.98728737]
[1771598487364,3.71106094,83.009,82.921,3.98728737]
[1771598487754,3.71106094,83.009,82.91,5.94541039]
[1771598487755,10.8472,82.996,82.948,10.8533]
[1771598488357,3.71106094,83.009,82.911,3.98728737]
[1771598488762,3.71106094,82.989,82.911,3.98728737]
[1771598488963,10.8491,82.981,82.911,3.98728737]
[1771598489462,3.71106094,82.989,82.911,3.98728737]
[1771598490055,5.94541039,83.01,82.892,11.90097789]
[1771598490056,3.71106094,83.009,82.921,3.98728737]
[1771598491158,10.846,83.005,82.945,14.84098737]
[1771598491564,10.846,83.005,82.952,10.8527]
[1771598491758,10.8444,83.017,82.945,3.98728737]
[1771598492058,3.71106094,83.028,82.962,10.8514]
[1771598493157,10.8452,83.011,82.952,3.98728737]
[1771598493357,3.71106094,83.028,82.952,3.98728737]
[1771598493557,3.71106094,83.028,82.94,5.94541039]
[1771598493758,10.8474,82.994,82.938,10.8546]
[1771598493957,3.71106094,83.009,82.932,3.98728737]
[1771598494362,10.8464,83.002,82.946,10.8536]
[1771598494558,60.71106094,83.029,82.946,3.98728737]
[1771598494759,3.71106094,83.029,82.946,3.98728737]
[1771598494960,3.71106094,83.029,82.971,10.8504]
[1771598495260,3.71106094,83.029,82.964,3.98728737]
[1771598496555,3.71106094,83.019,82.945,3.98728737]
[1771598497162,10.843,83.028,82.969,10.8506]
[1771598497363,10.843,83.028,82.919,21.5928529]
[1771598497364,3.95747916,83.028,82.935,3.85431779]
[1771598497560,3.95747916,83.01,82.935,3.85431779]
[1771598497760,10.8482,82.988,82.935,3.85431779]
[1771598498270,10.8493,82.979,82.925,10.8563]
[1771598499271,3.95747916,82.989,82.895,3.85431779]
[1771598500163,10.8522,82.958,82.909,10.8584]
[1771598500568,10.851,82.966,82.909,10.8584]
[1771598500867,3.95747916,82.966,82.909,10.8584]
[1771598501364,3.95747916,82.966,82.895,3.85431779]
[1771598501559,10.852,82.959,82.895,3.85431779]
[1771598502467,3.95747916,82.989,82.895,3.85431779]
[1771598502869,5.97734818,82.99,82.905,3.85431779]
[1771598502870,3.95747916,82.97,82.905,3.85431779]
[1771598503967,10.8525,82.955,82.905,3.85431779]
[1771598504162,3.95747916,82.969,82.886,3.85431779]
[1771598504767,10.8533,82.949,82.897,10.86]
[1771598505168,3.95747916,82.969,82.886,3.85431779]
[1771598505670,10.8509,82.968,82.913,10.8579]
[1771598506269,3.95747916,82.969,82.891,3.85431779]
[1771598506968,10.8518,82.961,82.905,10.859]
[1771598508666,10.8528,82.953,82.897,10.86]
[1771598508867,10.8528,82.953,82.898,3.85431779]
[1771598509074,3.95747916,82.969,82.898,3.85431779]
[1771598509372,3.95747916,82.969,82.901,3.85431779]
[1771598509572,3.95747916,82.999,82.901,3.85431779]
[1771598509873,3.95747916,82.999,82.921,3.85431779]
[1771598510072,10.849,82.982,82.935,10.855]
[1771598510278,3.95747916,82.999,82.921,3.85431779]
[1771598511676,3.95747916,82.971,82.918,10.8573]
[1771598512265,3.95747916,82.971,82.903,3.85431779]
[1771598512266,10.8517,82.961,82.909,10.8584]
[1771598512678,3.95747916,82.96,82.903,3.85431779]
[1771598512878,10.8536,82.947,82.903,3.85431779]
[1771598513171,3.95747916,82.96,82.903,3.85431779]
[1771598513678,10.8525,82.955,82.905,10.8589]
[1771598514466,10.8513,82.964,82.913,10.8579]
[1771598514774,3.95747916,82.978,82.914,3.85431779]
[1771598515274,5.97734818,83.0,82.914,3.85431779]
[1771598515275,3.95747916,82.999,82.914,3.85431779]
[1771598516680,10.8485,82.986,82.931,10.8555]
[1771598517481,10.8494,82.979,82.931,10.8555]
[1771598517975,3.95747916,82.999,82.938,10.8547]
[1771598518479,10.8491,82.981,82.931,3.85431779]
[1771598519475,3.95747916,82.999,82.931,3.85431779]
[1771598520078,3.95747916,82.999,82.951,10.8529]
[1771598520279,3.95747916,83.019,82.951,3.85431779]
[1771598520678,3.95747916,83.039,82.951,3.85431779]
[1771598520981,10.843,83.028,82.977,10.8495]
[1771598521378,10.8438,83.022,82.97,3.85431779]
[1771598521579,3.95747916,83.039,82.952,3.85431779]
[1771598521984,10.8454,83.01,82.958,10.852]
[1771598522278,21.6813,83.046,82.931,3.85431779]
[1771598522279,3.95747916,83.009,82.931,3.85431779]
[1771598522484,10.8475,82.993,82.942,10.8541]
[1771598523484,10.8464,83.002,82.931,3.85431779]
[1771598523682,3.95747916,83.009,82.931,3.85431779]
[1771598524075,10.8463,83.003,82.955,10.8523]
[1771598524281,3.95747916,83.009,82.95,3.85431779]
[1771598524585,8.85554368,83.055,82.961,3.85431779]
[1771598524786,3.95747916,83.078,83.0,5.97734818]
[1771598524984,3.95747916,83.078,82.955,168.8151]
[1771598524985,3.95747916,83.099,83.021,3.85431779]
[1771598525188,3.95747916,83.075,83.001,3.85431779]
[1771598526089,3.64587266,83.079,83.001,3.85431779]
[1771598527279,3.79608262,83.074,83.014,10.8447]
[1771598527679,3.79608262,83.074,83.014,3.6819934]
[1771598528087,3.79608262,83.074,83.021,10.8437]
[1771598528388,3.79608262,83.074,83.014,3.6819934]
[1771598528596,3.79608262,83.099,83.014,3.6819934]
[1771598528792,3.79608262,83.099,83.0,62.0]
[1771598528793,3.79608262,83.099,83.021,3.6819934]
[1771598529385,3.79608262,83.124,83.041,3.6819934]
[1771598529986,3.79608262,83.124,83.0,230.7249]
[1771598529987,3.79608262,83.124,83.061,3.6819934]
[1771598530183,3.79608262,83.19,83.111,3.6819934]
[1771598530683,3.79608262,83.19,83.136,10.8287]
[1771598530882,3.79608262,83.19,83.13,5.97734818]
[1771598530883,3.79608262,83.19,83.111,3.6819934]
[1771598531080,3.79608262,83.189,83.111,3.6819934]
[1771598531285,3.79608262,83.185,83.111,3.6819934]
[1771598531593,3.79608262,83.169,83.08,5.97734818]
[1771598531791,168.3139,83.203,83.07,3.6819934]
[1771598531792,3.79608262,83.146,83.07,3.6819934]
[1771598531989,3.79608262,83.146,83.06,5.97734818]
[1771598532390,3.79608262,83.131,83.06,5.97734818]
[1771598532584,3.79608262,83.131,83.05,3.6819934]
[1771598532789,5.97734818,83.15,83.05,3.6819934]
[1771598532790,3.79608262,83.129,83.05,3.6819934]
[1771598532990,3.79608262,83.125,83.051,10.8398]
[1771598533392,3.79608262,83.125,83.06,9.65934158]
[1771598534697,3.79608262,83.125,83.061,14.5205934]
[1771598535495,3.79608262,83.125,83.064,10.8381]
[1771598535695,5.97734818,83.15,83.06,5.97734818]
[1771598535696,3.79608262,83.145,83.065,3.6819934]
[1771598536089,3.79608262,83.145,83.08,5.97734818]
[1771598537189,3.79608262,83.168,83.082,3.6819934]
[1771598537699,3.79608262,83.168,83.101,3.6819934]
[1771598538584,10.8249,83.167,83.101,3.6819934]
[1771598539397,10.8261,83.158,83.092,10.8345]
[1771598539594,3.79608262,83.157,83.08,5.97734818]
[1771598539793,3.79608262,83.157,83.081,3.6819934]
[1771598539987,3.79608262,83.155,83.082,10.8358]
[1771598540191,3.79608262,83.155,83.083,3.6819934]
[1771598540593,3.79608262,83.153,83.063,3.6819934]
[1771598540787,3.79608262,83.153,83.081,3.6819934]
[1771598541191,3.79608262,83.149,83.081,3.6819934]
[1771598541796,3.79608262,83.143,83.081,3.6819934]
[1771598542192,10.8295,83.131,83.081,3.6819934]
[1771598542799,3.79608262,83.143,83.081,3.6819934]
[1771598543096,3.79608262,83.169,83.081,3.6819934]
[1771598543405,3.79608262,83.189,83.118,10.8312]
[1771598543604,3.79608262,83.189,83.121,3.6819934]
[1771598543898,3.79608262,83.189,83.122,10.8306]
[1771598544795,3.79608262,83.189,83.121,3.6819934]
[1771598544796,10.8231,83.181,83.121,3.6819934]
[1771598544996,3.79608262,83.189,83.121,3.6819934]
[1771598545495,21.6298,83.244,83.11,5.97734818]
[1771598545496,5.97734818,83.23,83.131,3.6819934]
[1771598545698,3.79608262,83.229,83.151,3.6819934]
[1771598546498,3.79608262,83.209,83.115,3.6819934]
[1771598547301,3.79608262,83.209,83.11,5.97734818]
[1771598547302,10.8219,83.19,83.126,3.6819934]
[1771598547501,3.79608262,83.189,83.11,5.97734818]
[1771598547701,10.8236,83.177,83.116,10.8314]
[1771598547898,10.8236,83.177,83.11,9.65934158]
[1771598548104,3.79608262,83.189,83.09,5.97734818]
[1771598548403,10.8259,83.159,83.095,10.8341]
[1771598548899,10.8271,83.149,83.095,10.8341]
[1771598549090,3.79608262,83.168,83.091,3.6819934]
[1771598549704,10.827,83.15,83.091,3.6819934]
[1771598550200,3.79608262,83.168,83.091,3.6819934]
[1771598550799,10.8279,83.144,83.091,3.6819934]
[1771598551004,3.79608262,83.149,83.071,3.6819934]
[1771598551204,3.79608262,83.169,83.071,3.6819934]
[1771598552398,10.8252,83.164,83.103,10.8331]
[1771598552599,3.79608262,83.169,83.104,3.6819934]
[1771598552794,3.79608262,83.19,83.111,3.6819934]
[1771598552999,10.8241,83.173,83.119,10.831]
[1771598553202,14.62018262,83.173,83.111,3.6819934]
[1771598553500,10.8252,83.165,83.111,14.5140934]
[1771598553700,3.79608262,83.173,83.091,3.6819934]
[1771598554301,3.79608262,83.173,83.044,168.6349]
[1771598554302,3.79608262,83.149,83.056,3.6819934]
[1771598554499,3.79608262,83.149,83.061,3.6819934]
[1771598554900,10.8286,83.138,83.073,10.837]
[1771598555209,3.79608262,83.139,83.061,3.6819934]
[1771598556100,3.79608262,83.139,83.06,5.97734818]
[1771598556101,14.62468262,83.139,83.072,3.6819934]
[1771598556498,14.62468262,83.139,83.083,10.8357]
[1771598556900,14.62468262,83.139,83.06,67.97734818]
[1771598556901,9.7734308,83.16,83.084,3.6819934]
[1771598557098,168.2595,83.23,83.11,10.8321]
[1771598557099,3.97690107,83.179,83.11,10.8321]
[1771598557603,10.8236,83.177,83.117,10.8312]
[1771598557805,3.97690107,83.199,83.121,3.71447993]
[1771598558003,5.94594641,83.22,83.131,3.71447993]
[1771598558306,3.97690107,83.221,83.154,3.71447993]
[1771598558507,3.97690107,83.241,83.171,3.71447993]
[1771598558809,287.69356415,83.27,83.17,9.66042634]
[1771598558810,3.97690107,83.262,83.191,3.71447993]
[1771598559809,10.8126,83.261,83.192,10.8215]
[1771598560105,3.97690107,83.261,83.191,3.71447993]
[1771598560408,10.8154,83.24,83.191,3.71447993]
[1771598560607,10.8154,83.24,83.17,5.94594641]
[1771598560798,10.8154,83.24,83.171,3.71447993]
[1771598561000,10.8141,83.249,83.181,10.8229]
[1771598561201,3.97690107,83.259,83.171,3.71447993]
[1771598561601,3.97690107,83.231,83.151,3.71447993]
[1771598561798,3.97690107,83.254,83.171,3.71447993]
[1771598562606,3.97690107,83.254,83.17,5.94594641]
[1771598562607,3.97690107,83.254,83.18,3.71447993]
[1771598563213,3.97690107,83.254,83.189,3.71447993]
[1771598563409,3.97690107,83.254,83.191,3.71447993]
[1771598563905,14.79050107,83.254,83.191,3.71447993]
[1771598564804,3.97690107,83.248,83.169,3.71447993]
[1771598565304,3.97690107,83.269,83.181,3.71447993]
[1771598566007,10.812,83.266,83.201,14.53477993]
[1771598566415,3.97690107,83.269,83.201,3.71447993]
[1771598566710,3.97690107,83.288,83.201,3.71447993]
[1771598566911,3.97690107,83.269,83.181,3.71447993]
[1771598567112,10.8123,83.264,83.2,10.8204]
[1771598567307,10.8123,83.264,83.201,3.71447993]
[1771598567701,3.97690107,83.269,83.203,3.71447993]
[1771598568206,3.97690107,83.309,83.223,3.71447993]
[1771598568414,3.97690107,83.289,83.201,3.71447993]
[1771598568915,3.97690107,83.289,83.226,3.71447993]
[1771598569108,3.97690107,83.316,83.241,3.71447993]
[1771598569506,10.8056,83.315,83.241,3.71447993]
[1771598570607,10.8056,83.315,83.243,3.71447993]
[1771598571212,3.97690107,83.316,83.256,3.71447993]
[1771598571414,5.94594641,83.33,83.256,3.71447993]
[1771598571612,3.97690107,83.337,83.256,3.71447993]
[1771598572216,3.97690107,83.329,83.26,3.71447993]
[1771598572708,3.97690107,83.329,83.241,3.71447993]
[1771598572905,5.94594641,83.33,83.241,3.71447993]
[1771598572906,3.97690107,83.309,83.241,3.71447993]
[1771598573313,3.97690107,83.329,83.259,10.8127]
[1771598573516,3.97690107,83.329,83.259,14.52717993]
[1771598573812,3.97690107,83.329,83.26,3.71447993]
[1771598574018,3.97690107,83.329,83.264,3.71447993]
[1771598574718,3.97690107,83.329,83.24,5.94594641]
[1771598574719,3.97690107,83.32,83.241,3.71447993]
[1771598575818,10.8073,83.302,83.241,3.71447993]
[1771598576014,3.97690107,83.301,83.241,3.71447993]
[1771598576221,3.97690107,83.301,83.21,5.94594641]
[1771598576222,3.97690107,83.301,83.211,3.71447993]
[1771598576518,3.97690107,83.289,83.211,3.71447993]
[1771598576920,10.8117,83.268,83.211,3.71447993]
[1771598577113,3.97690107,83.267,83.191,3.71447993]
[1771598577821,3.97690107,83.267,83.192,14.53587993]
[1771598578321,3.97690107,83.267,83.176,30.95898562]
[1771598578322,3.97690107,83.244,83.176,30.95898562]
[1771598578521,3.97690107,83.244,83.173,3.71447993]
[1771598578821,10.8167,83.23,83.173,3.71447993]
[1771598579017,3.97690107,83.244,83.173,3.71447993]
[1771598579211,3.97690107,83.229,83.151,3.71447993]
[1771598580219,10.8169,83.228,83.166,10.8249]
[1771598580416,3.97690107,83.229,83.151,3.71447993]
[1771598580720,10.817,83.227,83.163,10.8252]
[1771598580920,10.817,83.227,83.151,3.71447993]
[1771598580921,3.97690107,83.229,83.151,3.71447993]
[1771598581424,3.97690107,83.252,83.171,3.71447993]
[1771598582015,3.97690107,83.239,83.171,3.71447993]
[1771598582216,3.97690107,83.239,83.151,3.71447993]
[1771598583021,3.97690107,83.236,83.17,3.71447993]
[1771598583216,3.97690107,83.236,83.15,67.94594641]
[1771598583419,3.97690107,83.236,83.15,71.66042634]
[1771598583621,10.8172,83.226,83.163,10.8252]
[1771598583823,10.8172,83.226,83.151,3.71447993]
[1771598584027,3.97690107,83.236,83.151,3.71447993]
[1771598584725,3.97690107,83.234,83.151,3.71447993]
[1771598585226,5.94594641,83.24,83.15,67.94594641]
[1771598585420,5.94594641,83.24,83.15,5.94594641]
[1771598585614,5.94594641,83.2,83.11,5.94594641]
[1771598586219,10.8221,83.188,83.13,10.8296]
[1771598586825,10.8232,83.18,83.11,5.94594641]
[1771598587220,10.8243,83.171,83.111,10.832]
[1771598587424,5.94594641,83.18,83.09,5.94594641]
[1771598587823,10.8254,83.162,83.102,10.8333]
[1771598588625,10.8241,83.173,83.11,10.8321]
[1771598588825,5.94594641,83.18,83.09,67.94594641]
[1771598589525,10.8251,83.165,83.099,10.8336]
[1771598589826,5.94594641,83.16,83.07,5.94594641]
[1771598590226,5.94594641,83.16,83.079,10.8362]
[1771598590425,5.94594641,83.16,83.07,5.94594641]
[1771598592026,10.8281,83.142,83.076,10.8365]
[1771598592225,5.94594641,83.16,83.07,5.94594641]
[1771598593225,10.8277,83.145,83.082,10.8358]
[1771598593427,5.94594641,83.16,83.07,5.94594641]
[1771598593827,10.827,83.151,83.09,10.8348]
[1771598594027,10.827,83.151,83.07,5.94594641]
[1771598594433,10.827,83.151,83.09,10.8348]
[1771598594933,5.94594641,83.16,83.07,5.94594641]
[1771598595724,5.94594641,83.16,83.06,62.0]
[1771598596128,10.8298,83.129,83.068,10.8376]
[1771598596531,5.94594641,83.14,83.05,5.94594641]
[1771598597633,10.8295,83.131,83.05,5.94594641]
[1771598598428,5.94594641,83.14,83.05,5.94594641]
[1771598599137,5.94594641,83.12,83.03,5.94594641]
[1771598599334,5.94594641,83.1,83.02,5.94594641]
[1771598600129,5.94594641,83.12,83.02,5.94594641]
[1771598600330,5.94594641,83.12,83.04,5.94594641]
[1771598600730,10.8311,83.119,83.064,10.8382]
[1771598600926,21.6493,83.169,83.04,5.94594641]
[1771598600927,5.94594641,83.14,83.04,5.94594641]
[1771598601533,5.94594641,83.14,83.06,5.94594641]
[1771598602135,5.94594641,83.14,83.073,10.8369]
[1771598602531,5.94594641,83.14,83.06,5.94594641]
[1771598602736,5.94594641,83.14,83.04,67.94594641]
[1771598602944,5.94594641,83.12,83.02,5.94594641]
[1771598603641,10.8327,83.106,83.049,10.8401]
[1771598604043,5.94594641,83.12,83.02,5.94594641]
[1771598604240,10.8339,83.097,83.041,10.8412]
[1771598604536,5.94594641,83.12,83.02,5.94594641]
[1771598604933,36.17,83.151,83.0,5.94594641]
[1771598604934,5.94594641,83.1,83.0,5.94594641]
[1771598605138,5.94594641,83.12,83.02,5.94594641]
[1771598605640,5.94594641,83.12,83.04,10.8412]
[1771598605841,5.94594641,83.12,83.02,5.94594641]
[1771598606041,5.94594641,83.12,83.03,62.0]
[1771598606235,10.8311,83.119,83.06,10.8387]
[1771598608241,21.6536,83.152,83.02,5.94594641]
[1771598608242,5.94594641,83.1,83.02,5.94594641]
[1771598609144,10.8349,83.09,83.02,5.94594641]
[1771598609740,10.8338,83.098,83.039,10.8414]
[1771598610235,10.8326,83.108,83.046,10.8405]
[1771598610435,10.8326,83.108,83.02,5.94594641]
[1771598610436,5.94594641,83.12,83.04,5.94594641]
[1771598611242,5.94594641,83.12,83.04,67.94594641]
[1771598611546,5.94594641,83.12,83.04,5.94594641]
[1771598611738,10.8314,83.117,83.06,10.8387]
[1771598611939,5.94594641,83.12,83.04,5.94594641]
[1771598612940,10.8322,83.111,83.052,10.8397]
[1771598613446,5.94594641,83.12,83.04,5.94594641]
[1771598614042,5.94594641,83.12,83.02,5.94594641]
[1771598614345,5.94594641,83.1,83.02,67.94594641]
[1771598614741,10.8346,83.092,83.039,10.8414]
[1771598614948,5.94594641,83.1,83.02,67.94594641]
[1771598615648,5.94594641,83.1,83.045,10.8406]
[1771598615944,5.94594641,83.1,83.0,5.94594641]
[1771598618253,5.94594641,83.1,83.025,10.8432]
[1771598618441,5.94594641,83.1,83.0,5.94594641]
[1771598618850,5.94594641,83.1,83.0,67.94594641]
[1771598619052,5.94594641,83.1,83.002,21.6926]
[1771598619853,10.8371,83.073,83.031,10.8425]
[1771598620062,5.96414216,83.1,83.002,21.6926]
[1771598620245,5.96414216,83.1,83.0,67.96414216]
[1771598620652,5.96414216,83.1,83.038,10.8416]
[1771598621558,5.96414216,83.1,83.0,67.96414216]
[1771598621957,10.8379,83.067,83.0,5.96414216]
[1771598622156,10.8379,83.067,83.019,10.8441]
[1771598622458,5.96414216,83.08,82.989,11.75206954]
[1771598622665,5.96414216,83.08,82.98,5.96414216]
[1771598622666,10.839,83.058,82.98,5.96414216]
[1771598623359,10.8381,83.065,82.98,5.96414216]
[1771598624256,5.96414216,83.08,82.98,5.96414216]
[1771598624458,5.96414216,83.06,82.97,5.96414216]
[1771598624664,5.96414216,83.04,82.97,10.8504]
[1771598624962,5.96414216,83.04,82.95,5.96414216]
[1771598625355,5.96414216,83.04,82.973,10.85]
[1771598625561,10.8431,83.027,82.95,5.96414216]
[1771598626157,10.8441,83.019,82.964,10.8512]
[1771598626558,5.96414216,83.02,82.921,50.69707715]
[1771598627864,10.8459,83.006,82.944,10.8539]
[1771598628162,10.8459,83.006,82.921,50.69707715]
[1771598628560,5.96414216,83.02,82.94,5.96414216]
[1771598629063,10.8448,83.014,82.946,10.8536]
[1771598630165,5.96414216,83.02,82.94,5.96414216]
[1771598630563,5.96414216,83.02,82.962,10.8515]
[1771598630761,5.96414216,83.02,82.94,5.96414216]